bitfinex/quotes_BTCUSD_20250225
["timestamp","ask_amount","ask_price","bid_price","bid_amount"]
[1740492953143,0.0008457,89572.0,89559.0,0.06348892]
[1740492953359,0.0008457,89572.0,89559.0,0.24173592]
[1740492953572,0.0008457,89572.0,89559.0,0.35548345]
[1740492953993,0.0008457,89572.0,89559.0,0.07424892]
[1740492954402,0.167555,89560.0,89559.0,0.07424892]
[1740492954611,0.167555,89560.0,89559.0,0.06348892]
[1740492954777,7e-05,89560.0,89550.0,0.01076]
[1740492955099,0.223316,89559.0,89551.0,0.01454085]
[1740492955321,0.167555,89560.0,89559.0,0.01454085]
[1740492955510,7e-05,89560.0,89554.0,0.04894807]
[1740492955740,0.223318,89558.0,89539.0,0.0498]
[1740492955904,0.167506,89549.0,89548.0,0.04894807]
[1740492956239,0.223318,89558.0,89541.0,0.04894807]
[1740492956407,7e-05,89560.0,89540.0,0.01454085]
[1740492956408,0.167521,89541.0,89540.0,0.01454085]
[1740492956614,0.16755,89525.0,89524.0,0.0483]
[1740492956813,0.16755,89526.0,89525.0,0.06348892]
[1740492956991,0.223375,89536.0,89525.0,0.01454085]
[1740492957203,0.16755,89525.0,89524.0,0.04894807]
[1740492957396,0.3,89554.0,89522.0,0.0108]
[1740492957604,0.167554,89523.0,89522.0,0.0108]
[1740492958433,0.223403,89525.0,89517.0,0.04894807]
[1740492958760,0.167556,89522.0,89521.0,0.04894807]
[1740492959102,0.033587,89558.0,89521.0,0.04894807]
[1740492959426,0.167552,89524.0,89523.0,0.04894807]
[1740492960003,0.167556,89522.0,89521.0,0.004]
[1740492960225,0.223408,89523.0,89520.0,0.04894807]
[1740492960478,0.02759949,89532.0,89522.0,0.06348892]
[1740492960648,0.05541277,89607.0,89517.0,0.005]
[1740492960649,0.05105193,89571.0,89534.0,0.04894807]
[1740492960860,0.223309,89562.0,89535.0,0.01454085]
[1740492961014,0.033586,89564.0,89538.0,0.01454085]
[1740492961215,0.167524,89539.0,89538.0,0.01454085]
[1740492961927,0.223335,89552.0,89538.0,0.01454085]
[1740492962133,0.167522,89541.0,89538.0,0.01454085]
[1740492962317,0.028219,89560.0,89538.0,0.01454085]
[1740492962779,0.167518,89543.0,89538.0,0.01454085]
[1740492963004,0.028219,89560.0,89554.0,0.04894807]
[1740492963214,0.167494,89555.0,89554.0,0.06348892]
[1740492963793,0.167493,89556.0,89555.0,0.01454085]
[1740492963994,0.167492,89556.0,89555.0,0.01454085]
[1740492966094,0.028219,89560.0,89555.0,0.01454085]
[1740492966324,0.028219,89560.0,89559.0,0.06348892]
[1740492966789,7e-05,89560.0,89559.0,0.06348892]
[1740492968384,7e-05,89560.0,89547.0,0.2]
[1740492968385,0.167507,89548.0,89547.0,0.2]
[1740492968566,7e-05,89560.0,89555.0,0.04894807]
[1740492968567,0.223321,89558.0,89555.0,0.04894807]
[1740492968733,0.167492,89556.0,89555.0,0.04894807]
[1740492968955,0.223384,89560.0,89555.0,0.04894807]
[1740492969196,0.167492,89556.0,89550.0,0.04894807]
[1740492969410,0.467555,89560.0,89559.0,0.002]
[1740492970650,0.467555,89560.0,89559.0,0.05094807]
[1740492970651,7e-05,89560.0,89559.0,0.05094807]
[1740492970822,7e-05,89560.0,89559.0,0.42742345]
[1740492971031,7e-05,89560.0,89559.0,0.21098838]
[1740492971238,7e-05,89560.0,89559.0,0.14618892]
[1740492971637,0.223316,89559.0,89553.0,0.04894807]
[1740492971839,0.167515,89544.0,89543.0,0.2]
[1740492972505,0.223337,89551.0,89534.0,0.02281333]
[1740492972702,0.167507,89548.0,89528.0,0.0781]
[1740492972908,7e-05,89560.0,89544.0,0.04894807]
[1740492973114,0.167513,89545.0,89544.0,0.04894807]
[1740492973312,0.0167513,89545.0,89522.0,0.047]
[1740492973527,7e-05,89560.0,89515.0,0.17728]
[1740492973528,0.3,89539.0,89515.0,0.17728]
[1740492973739,0.223415,89520.0,89515.0,0.17728]
[1740492973941,0.167562,89519.0,89518.0,0.04894807]
[1740492974144,0.167562,89519.0,89515.0,0.17728]
[1740492974145,0.167567,89516.0,89515.0,0.17728]
[1740492974351,0.167567,89516.0,89496.0,0.14747282]
[1740492974352,0.167569,89515.0,89498.0,0.04894807]
[1740492974972,0.167569,89515.0,89496.0,0.10037282]
[1740492974973,0.19532464,89515.0,89496.0,0.10037282]
[1740492975803,0.19532464,89515.0,89514.0,1.6e-07]
[1740492976018,0.29532464,89515.0,89514.0,1.6e-07]
[1740492976218,0.467603,89497.0,89496.0,0.10037282]
[1740492976428,0.167603,89497.0,89496.0,0.10037282]
[1740492976630,0.02775564,89515.0,89514.0,0.001]
[1740492976844,0.033596,89534.0,89514.0,0.001]
[1740492977050,0.167571,89514.0,89512.0,0.04894807]
[1740492977260,0.033594,89541.0,89514.0,0.001]
[1740492977469,0.0008449,89544.0,89523.0,0.01454085]
[1740492977874,0.0008449,89544.0,89533.0,0.04894807]
[1740492978079,0.0008449,89544.0,89535.0,0.167531]
[1740492978281,0.0008449,89544.0,89534.0,0.01454085]
[1740492978504,0.167519,89542.0,89536.0,0.04894807]
[1740492978702,0.1683609,89544.0,89536.0,0.04894807]
[1740492978951,0.0008449,89544.0,89543.0,0.04894807]
[1740492979128,0.0028449,89544.0,89543.0,0.23100592]
[1740492979791,0.0028449,89544.0,89543.0,0.30680592]
[1740492980223,0.0028449,89544.0,89543.0,0.13928892]
[1740492980498,0.0008449,89544.0,89543.0,0.15024892]
[1740492980729,0.0008449,89544.0,89543.0,0.32476592]
[1740492980937,0.0008449,89544.0,89543.0,0.14628892]
[1740492981148,0.1683599,89544.0,89543.0,0.007]
[1740492981366,0.4693599,89544.0,89543.0,0.014]
[1740492981723,0.58221686,89544.0,89543.0,0.007]
[1740492981945,0.4683599,89544.0,89543.0,0.007]
[1740492982104,0.4693599,89544.0,89543.0,0.014]
[1740492982309,0.58321686,89544.0,89543.0,0.007]
[1740492982514,0.4693599,89544.0,89543.0,0.007]
[1740492982713,0.4693599,89544.0,89543.0,0.014]
[1740492982980,0.4693599,89544.0,89543.0,0.007]
[1740492983466,0.4693599,89544.0,89543.0,0.009]
[1740492983672,0.4693599,89544.0,89543.0,0.007]
[1740492983870,0.0018449,89544.0,89531.0,0.06505245]
[1740492984195,0.1683599,89544.0,89543.0,0.004]
[1740492984313,0.4683599,89544.0,89543.0,0.004]
[1740492985235,0.3,89543.0,89519.0,0.06002807]
[1740492985459,0.3,89538.0,89521.0,0.04894807]
[1740492985668,0.0008449,89544.0,89536.0,0.04894807]
[1740492985825,0.0008449,89544.0,89531.0,0.002]
[1740492985826,0.167519,89542.0,89541.0,0.04894807]
[1740492986028,0.0008449,89544.0,89541.0,0.04894807]
[1740492986625,0.167519,89542.0,89541.0,0.04894807]
[1740492987500,0.167519,89542.0,89541.0,0.001]
[1740492987745,0.467519,89542.0,89541.0,0.001]
[1740492987942,0.3,89531.0,89516.0,0.2]
[1740492988121,0.167565,89517.0,89516.0,0.2]
[1740492988363,0.467565,89517.0,89516.0,0.2]
[1740492988586,0.467569,89515.0,89514.0,0.00169]
[1740492989175,0.467569,89515.0,89484.0,0.2]
[1740492989176,0.3,89502.0,89484.0,0.2]
[1740492989408,0.167625,89485.0,89484.0,0.2]
[1740492989613,0.167629,89483.0,89481.0,0.0812]
[1740492989812,0.167629,89483.0,89482.0,0.05063867]
[1740492990020,0.167629,89483.0,89482.0,0.0016906]
[1740492990434,0.467629,89483.0,89482.0,0.0016906]
[1740492991332,0.301,89483.0,89482.0,0.0086906]
[1740492991529,0.468629,89483.0,89482.0,0.0086906]
[1740492991730,0.20306733,89485.0,89482.0,0.0086906]
[1740492991954,0.167629,89483.0,89482.0,0.0086906]
[1740492992134,0.167629,89483.0,89482.0,0.0106906]
[1740492992471,0.167627,89484.0,89482.0,0.0036906]
[1740492992715,0.167629,89483.0,89482.0,0.0036906]
[1740492993315,0.223483,89493.0,89482.0,0.0036906]
[1740492993316,0.1,89516.0,89482.0,0.0046906]
[1740492993521,0.167623,89486.0,89485.0,0.04894807]
[1740492994764,0.167629,89483.0,89482.0,0.05263867]
[1740492994977,0.167629,89483.0,89482.0,0.0026906]
[1740492995356,0.167629,89483.0,89482.0,0.0016906]
[1740492995577,0.167629,89483.0,89482.0,0.0026906]
[1740492995994,0.167629,89483.0,89482.0,0.0016906]
[1740492996193,0.167629,89483.0,89482.0,0.0046906]
[1740492996594,0.167629,89483.0,89482.0,0.0016906]
[1740492996836,0.167629,89483.0,89482.0,0.0066906]
[1740492997062,0.167629,89483.0,89482.0,0.0096906]
[1740492997274,0.167629,89483.0,89482.0,0.0016906]
[1740492997699,0.167629,89483.0,89482.0,0.0066906]
[1740492998113,0.335272,89480.0,89457.0,0.0786]
[1740492998323,0.22456591,89499.0,89457.0,0.0786]
[1740492998324,0.3,89493.0,89457.0,0.12754807]
[1740492998497,0.467629,89483.0,89482.0,0.002]
[1740492998725,0.467629,89483.0,89482.0,0.005]
[1740492998863,0.467629,89483.0,89482.0,0.002]
[1740492999685,0.467629,89483.0,89445.0,0.01096]
[1740492999686,0.3,89469.0,89445.0,0.04894807]
[1740492999890,0.3,89469.0,89444.0,0.05063947]
[1740492999891,0.1677,89445.0,89444.0,0.05063947]
[1740493000101,0.223534,89472.0,89447.0,0.04894807]
[1740493000454,0.167667,89463.0,89453.0,0.167685]
[1740493000634,0.167667,89463.0,89451.0,0.04894807]
[1740493000635,0.167629,89483.0,89482.0,0.001]
[1740493000886,0.46333755,89483.0,89482.0,0.001]
[1740493001096,0.3,89455.0,89449.0,0.09042051]
[1740493001292,0.3,89455.0,89447.0,0.04894807]
[1740493001492,0.167695,89448.0,89447.0,0.04894807]
[1740493001952,0.3,89455.0,89447.0,0.04894807]
[1740493002176,0.3,89461.0,89447.0,0.04894807]
[1740493002419,0.223536,89471.0,89447.0,0.04894807]
[1740493002420,0.167695,89448.0,89447.0,0.04894807]
[1740493002594,0.1677,89445.0,89444.0,0.0016914]
[1740493003132,0.1677,89445.0,89444.0,0.05063947]
[1740493003809,0.1687,89445.0,89444.0,0.06463947]
[1740493004048,0.1687,89445.0,89444.0,0.0156914]
[1740493004241,0.1677,89445.0,89444.0,0.0086914]
[1740493004377,0.1677,89445.0,89444.0,0.05763947]
[1740493004578,0.1687,89445.0,89444.0,0.0156914]
[1740493004982,0.1687,89445.0,89444.0,0.0086914]
[1740493005187,0.4687,89445.0,89444.0,0.0086914]
[1740493005386,0.4687,89445.0,89444.0,0.0156914]
[1740493005647,0.4687,89445.0,89444.0,0.0086914]
[1740493005840,0.4677,89445.0,89444.0,0.0016914]
[1740493006039,0.4677,89445.0,89444.0,0.0086914]
[1740493006253,0.4687,89445.0,89444.0,0.0066914]
[1740493006484,0.4687,89445.0,89444.0,0.0096914]
[1740493006842,0.4687,89445.0,89444.0,0.0066914]
[1740493007379,0.4677,89445.0,89444.0,0.0016914]
[1740493007584,0.4677,89445.0,89444.0,0.0066914]
[1740493008776,0.4677,89445.0,89444.0,0.0106914]
[1740493008961,0.4677,89445.0,89444.0,0.0066914]
[1740493009172,0.4677,89445.0,89444.0,0.0016914]
[1740493009398,0.4677,89445.0,89444.0,0.0066914]
[1740493010232,0.1677,89445.0,89444.0,0.0066914]
[1740493010448,0.223597,89447.0,89444.0,0.0036914]
[1740493010603,0.223597,89447.0,89444.0,0.0076914]
[1740493010604,0.1677,89445.0,89444.0,0.0076914]
[1740493012180,0.223568,89459.0,89444.0,0.0076914]
[1740493012384,0.223547,89467.0,89445.0,0.01454085]
[1740493012591,0.167693,89449.0,89448.0,0.01454085]
[1740493013339,0.223594,89448.0,89444.0,0.0016914]
[1740493013538,0.1677,89445.0,89444.0,0.0016914]
[1740493013959,0.1677,89445.0,89444.0,0.0036914]
[1740493015027,0.1677,89445.0,89444.0,0.05263947]
[1740493015207,0.1677,89445.0,89444.0,0.05063947]
[1740493015208,0.1685487,89445.0,89444.0,0.05063947]
[1740493015714,0.1685487,89445.0,89444.0,0.06363947]
[1740493016072,0.1685487,89445.0,89444.0,0.05063947]
[1740493016269,0.1685487,89445.0,89444.0,0.05663947]
[1740493016466,0.1685487,89445.0,89444.0,0.05063947]
[1740493016672,0.1695487,89445.0,89444.0,0.05763947]
[1740493016830,0.1695487,89445.0,89444.0,0.06463947]
[1740493017032,0.1695487,89445.0,89444.0,0.0156914]
[1740493017220,0.18938629,89445.0,89444.0,0.0086914]
[1740493017420,0.19038629,89445.0,89444.0,0.0136914]
[1740493018254,0.49038629,89445.0,89444.0,0.0066914]
[1740493018475,0.49038629,89445.0,89444.0,0.0126914]
[1740493018626,0.58414392,89445.0,89444.0,0.0126914]
[1740493018847,0.58414392,89445.0,89444.0,0.0066914]
[1740493019053,0.467723,89433.0,89432.0,0.0016898]
[1740493020088,0.48856059,89433.0,89432.0,0.0016898]
[1740493020542,0.48856059,89433.0,89432.0,0.0066898]
[1740493021281,0.60241755,89433.0,89432.0,8e-07]
[1740493021549,0.48856059,89433.0,89432.0,8e-07]
[1740493022169,0.48856059,89433.0,89404.0,0.0761]
[1740493022170,0.3,89432.0,89424.0,0.0016508]
[1740493022375,0.167781,89402.0,89401.0,6.721e-05]
[1740493023154,0.18743349,89402.0,89401.0,6.721e-05]
[1740493023358,0.01363071,89402.0,89401.0,0.75454666]
[1740493023592,0.002,89433.0,89432.0,0.17134807]
[1740493023974,0.167723,89433.0,89432.0,0.075]
[1740493024141,0.167743,89422.0,89421.0,0.04894807]
[1740493024336,0.223624,89436.0,89419.0,0.0832]
[1740493024337,0.167747,89420.0,89419.0,0.13114807]
[1740493024543,0.167747,89420.0,89419.0,0.0832]
[1740493024787,0.16777,89408.0,89407.0,0.12764807]
[1740493025382,0.46777,89408.0,89407.0,0.0797]
[1740493025594,0.167781,89402.0,89401.0,0.09551528]
[1740493025794,0.167781,89402.0,89401.0,6.721e-05]
[1740493026179,0.47822753,89402.0,89401.0,6.721e-05]
[1740493027007,0.5000313,89402.0,89401.0,2.1e-07]
[1740493027212,0.467798,89393.0,89392.0,6e-07]
[1740493028604,0.22456591,89395.0,89392.0,6e-07]
[1740493028814,0.22456591,89395.0,89394.0,0.15290943]
[1740493029026,0.004,89402.0,89401.0,0.167783]
[1740493029210,0.004,89402.0,89401.0,0.04794807]
[1740493029593,0.22456591,89430.0,89399.0,0.04794807]
[1740493029770,0.167798,89393.0,89392.0,0.0010006]
[1740493031219,0.467798,89393.0,89392.0,0.0010006]
[1740493031418,0.467798,89393.0,89392.0,6e-07]
[1740493032156,0.468798,89393.0,89392.0,6e-07]
[1740493032557,0.468798,89393.0,89392.0,0.0060006]
[1740493033009,0.469798,89393.0,89392.0,0.0060006]
[1740493033149,0.169798,89393.0,89392.0,0.05394867]
[1740493033763,0.169798,89393.0,89392.0,0.0060006]
[1740493037803,0.002,89393.0,89392.0,0.0060006]
[1740493037987,0.002,89393.0,89392.0,0.05394867]
[1740493038352,0.169798,89393.0,89392.0,0.0060006]
[1740493038654,0.2538944,89393.0,89392.0,0.0060006]
[1740493039193,0.167798,89393.0,89392.0,6e-07]
[1740493039394,0.168798,89393.0,89392.0,6e-07]
[1740493039593,0.1706472,89393.0,89392.0,0.0060006]
[1740493039791,0.1686472,89393.0,89392.0,6e-07]
[1740493040002,0.28250416,89393.0,89392.0,6e-07]
[1740493040383,0.1686472,89393.0,89392.0,6e-07]
[1740493041009,0.1696472,89393.0,89392.0,6e-07]
[1740493041272,0.1914878,89393.0,89392.0,0.0060006]
[1740493041420,0.4904878,89393.0,89392.0,6e-07]
[1740493041824,0.22376298,89393.0,89392.0,6e-07]
[1740493042032,0.39156098,89393.0,89392.0,6e-07]
[1740493042327,0.1,89417.0,89392.0,6e-07]
[1740493042328,0.223681,89413.0,89392.0,6e-07]
[1740493042529,0.168798,89393.0,89392.0,6e-07]
[1740493042828,0.167798,89393.0,89392.0,6e-07]
[1740493043066,0.17822054,89393.0,89392.0,6e-07]
[1740493043242,0.17822054,89393.0,89392.0,0.0010006]
[1740493043673,0.17822054,89393.0,89392.0,6e-07]
[1740493044122,0.01042254,89393.0,89392.0,0.17384867]
[1740493044539,0.01042254,89393.0,89392.0,0.18838952]
[1740493044739,0.01042254,89393.0,89392.0,0.36118952]
[1740493044940,0.01042254,89393.0,89392.0,0.18838952]
[1740493045241,0.01042254,89393.0,89392.0,0.18938952]
[1740493045628,0.01042254,89393.0,89392.0,0.1249006]
[1740493045823,0.17822054,89393.0,89392.0,0.1249006]
[1740493045990,0.17822054,89393.0,89392.0,0.1299006]
[1740493046192,0.01042254,89393.0,89392.0,0.1289006]
[1740493046445,0.17822054,89393.0,89392.0,0.1289006]
[1740493046646,0.17822054,89393.0,89392.0,0.1339006]
[1740493046896,0.17822054,89393.0,89392.0,0.1299006]
[1740493047128,0.17822054,89393.0,89392.0,0.1339006]
[1740493047846,0.17822054,89393.0,89392.0,0.1289006]
[1740493048043,0.17822054,89393.0,89392.0,0.0080006]
[1740493048450,0.17822054,89393.0,89392.0,6e-07]
[1740493048775,0.17822054,89393.0,89392.0,0.0080006]
[1740493049323,0.01042254,89393.0,89392.0,6e-07]
[1740493049523,0.17822054,89393.0,89392.0,0.0040006]
[1740493049861,0.3,89409.0,89392.0,0.0040006]
[1740493050072,0.447248,89436.0,89392.0,6e-07]
[1740493050073,0.167798,89393.0,89392.0,6e-07]
[1740493050406,0.167798,89393.0,89392.0,0.0040006]
[1740493050881,0.167796,89394.0,89392.0,0.0040006]
[1740493051079,0.167798,89393.0,89392.0,0.0080006]
[1740493051278,0.3,89402.0,89392.0,0.0080006]
[1740493051490,0.3,89398.0,89392.0,0.0080006]
[1740493051702,0.34379234,89432.0,89397.0,0.04794807]
[1740493051941,0.22456591,89431.0,89397.0,0.04794807]
[1740493052251,0.22456591,89431.0,89392.0,0.0040006]
[1740493052252,0.22456591,89431.0,89416.0,0.04794807]
[1740493052362,0.0008489,89433.0,89416.0,0.04794807]
[1740493052566,0.223658,89423.0,89420.0,0.04794807]
[1740493052762,0.167745,89421.0,89420.0,0.04794807]
[1740493053063,0.167745,89421.0,89406.0,0.3235]
[1740493053064,0.167747,89420.0,89419.0,0.04794807]
[1740493053275,0.007,89421.0,89406.0,0.547196]
[1740493053276,0.007,89421.0,89410.0,0.04794807]
[1740493053475,0.16776,89413.0,89412.0,0.04794807]
[1740493053757,0.3,89424.0,89412.0,0.04794807]
[1740493053909,0.001,89423.0,89420.0,0.005]
[1740493054094,0.167745,89421.0,89420.0,0.005]
[1740493054274,0.167743,89422.0,89421.0,0.04794807]
[1740493056178,0.167743,89422.0,89412.0,0.223681]
[1740493056179,0.167745,89421.0,89420.0,0.04794807]
[1740493056382,0.391412,89420.0,89419.0,0.04794807]
[1740493056502,0.167753,89417.0,89416.0,0.04794807]
[1740493056707,0.223666,89419.0,89416.0,0.04794807]
[1740493056909,0.223665,89420.0,89405.0,0.1264]
[1740493056910,0.3,89418.0,89407.0,0.04794807]
[1740493057116,0.167772,89407.0,89398.0,0.0795]
[1740493057313,0.167772,89407.0,89406.0,0.37144807]
[1740493057731,0.167772,89407.0,89406.0,0.3235]
[1740493057931,0.167772,89407.0,89406.0,0.37144807]
[1740493058161,0.167772,89407.0,89406.0,0.3235]
[1740493058362,0.167772,89407.0,89406.0,0.37144807]
[1740493058536,0.001,89417.0,89412.0,0.04794807]
[1740493058752,0.001,89417.0,89413.0,0.04794807]
[1740493058753,0.223678,89415.0,89413.0,0.04794807]
[1740493058973,0.167758,89414.0,89413.0,0.04794807]
[1740493059190,0.167758,89414.0,89411.0,0.04794807]
[1740493059333,0.167758,89414.0,89406.0,0.3305]
[1740493059334,0.167758,89414.0,89413.0,0.04694807]
[1740493059554,0.167762,89412.0,89411.0,0.04694807]
[1740493059773,0.167755,89416.0,89415.0,0.04694807]
[1740493060183,0.167755,89416.0,89415.0,0.04594807]
[1740493061115,0.167758,89414.0,89413.0,0.007]
[1740493061576,0.467758,89414.0,89413.0,0.007]
[1740493061992,0.223713,89401.0,89390.0,0.01096]
[1740493062197,0.167794,89395.0,89394.0,0.09184807]
[1740493063766,0.167798,89393.0,89391.0,0.04594807]
[1740493064116,0.22091662,89395.0,89394.0,0.04594807]
[1740493064526,0.22091662,89395.0,89394.0,0.04994807]
[1740493064734,0.22091662,89395.0,89394.0,0.04594807]
[1740493065560,0.19185334,89395.0,89394.0,0.04994807]
[1740493065764,0.19185334,89395.0,89394.0,0.004]
[1740493066182,0.49185334,89395.0,89394.0,0.004]
[1740493066825,0.467798,89393.0,89392.0,6e-07]
[1740493068242,0.69236391,89393.0,89392.0,6e-07]
[1740493068444,0.167845,89368.0,89367.0,0.22350807]
[1740493069291,0.167845,89368.0,89367.0,0.17756]
[1740493069493,0.167845,89368.0,89367.0,0.22350807]
[1740493069890,0.168845,89368.0,89367.0,0.23050807]
[1740493071251,0.001,89368.0,89367.0,0.23750807]
[1740493071608,0.168845,89368.0,89367.0,0.23750807]
[1740493072335,0.001,89368.0,89367.0,0.41989592]
[1740493072542,0.001,89368.0,89367.0,0.25204892]
[1740493073140,0.168845,89368.0,89367.0,0.23750807]
[1740493073300,0.001,89368.0,89367.0,0.23750807]
[1740493073504,0.168845,89368.0,89367.0,0.23750807]
[1740493073759,0.001,89368.0,89367.0,0.41989592]
[1740493074568,0.001,89368.0,89367.0,0.23750807]
[1740493074768,0.168845,89368.0,89367.0,0.23750807]
[1740493074979,0.001,89368.0,89367.0,0.23750807]
[1740493075570,0.168845,89368.0,89367.0,0.23750807]
[1740493075779,0.168845,89368.0,89367.0,0.19156]
[1740493075975,0.168845,89368.0,89367.0,0.014]
[1740493076153,0.468845,89368.0,89367.0,0.014]
[1740493076350,0.50304803,89368.0,89367.0,0.014]
[1740493076580,0.468845,89368.0,89367.0,0.014]
[1740493076831,0.467845,89368.0,89367.0,0.0086984]
[1740493077188,0.468845,89368.0,89367.0,0.0156984]
[1740493077666,0.468845,89368.0,89367.0,0.0086984]
[1740493077869,0.467864,89358.0,89354.0,0.0016914]
[1740493080244,0.468864,89358.0,89354.0,0.0016914]
[1740493080653,0.467864,89358.0,89354.0,0.0016914]
[1740493080860,0.468864,89358.0,89354.0,0.0016914]
[1740493081186,0.167864,89358.0,89354.0,0.0016914]
[1740493081538,0.168864,89358.0,89354.0,0.0016914]
[1740493081787,0.001,89358.0,89343.0,0.04594807]
[1740493081979,0.16789,89344.0,89343.0,0.04594807]
[1740493082181,0.223851,89346.0,89342.0,0.0016974]
[1740493082449,0.167892,89343.0,89342.0,0.0016974]
[1740493082651,0.167892,89343.0,89342.0,4e-07]
[1740493082854,0.167935,89320.0,89317.0,0.0016978]
[1740493083075,0.167935,89320.0,89304.0,0.0016978]
[1740493083076,0.3,89319.0,89304.0,0.0016978]
[1740493083299,0.467967,89303.0,89302.0,0.0016978]
[1740493083752,0.467967,89303.0,89277.0,0.04764647]
[1740493083753,0.46799,89291.0,89277.0,0.04764647]
[1740493084149,0.49266244,89291.0,89277.0,0.04764647]
[1740493084278,0.49359863,89291.0,89277.0,0.04764647]
[1740493084479,0.49266244,89291.0,89277.0,0.04764647]
[1740493085272,0.49266244,89291.0,89280.0,0.04594807]
[1740493085877,0.19266244,89291.0,89286.0,0.04594807]
[1740493086127,0.02567244,89291.0,89290.0,0.05923937]
[1740493086338,0.001,89291.0,89290.0,0.36967122]
[1740493086676,0.25823991,89342.0,89311.0,0.04594807]
[1740493086889,0.02582399,89341.0,89311.0,0.04594807]
[1740493087095,0.16795,89312.0,89311.0,0.04494807]
[1740493087243,0.47294531,89342.0,89312.0,0.0815]
[1740493087454,0.167918,89329.0,89328.0,0.04494807]
[1740493087655,0.223888,89331.0,89327.0,0.04494807]
[1740493087656,0.46792,89328.0,89327.0,0.04494807]
[1740493087817,0.16792,89328.0,89327.0,0.04494807]
[1740493088312,0.223893,89328.0,89327.0,0.04494807]
[1740493088786,0.223893,89328.0,89312.0,0.24945]
[1740493088787,0.0671669,89328.0,89312.0,0.0815]
[1740493089013,0.24908531,89342.0,89267.0,0.0016984]
[1740493089014,0.167965,89304.0,89303.0,0.3225]
[1740493089236,0.167984,89294.0,89293.0,0.05586807]
[1740493089445,0.167986,89293.0,89292.0,0.0781]
[1740493089659,0.167986,89293.0,89290.0,0.0613915]
[1740493089660,0.46799,89291.0,89290.0,0.05993957]
[1740493090293,0.49268539,89291.0,89290.0,0.05993957]
[1740493090658,0.49268539,89291.0,89290.0,0.0149915]
[1740493092243,0.49268539,89291.0,89290.0,0.0179915]
[1740493092783,0.49268539,89291.0,89290.0,0.0189915]
[1740493093067,0.49268539,89291.0,89290.0,0.0219915]
[1740493093950,0.59270101,89291.0,89290.0,0.0219915]
[1740493094119,0.49268539,89291.0,89290.0,0.0219915]
[1740493094781,0.49268539,89291.0,89290.0,0.0179915]
[1740493094982,0.49268539,89291.0,89290.0,0.0149915]
[1740493095175,0.49268539,89291.0,89290.0,0.0179915]
[1740493095386,0.60654235,89291.0,89290.0,0.00614229]
[1740493095942,0.60654235,89291.0,89290.0,0.00414229]
[1740493096223,0.60654235,89291.0,89290.0,0.00314229]
[1740493096224,0.49268539,89291.0,89290.0,0.00314229]
[1740493096584,0.49268539,89291.0,89290.0,2.9e-07]
[1740493097312,0.7172513,89291.0,89290.0,2.9e-07]
[1740493097491,0.83110826,89291.0,89290.0,2.9e-07]
[1740493098558,0.93110826,89291.0,89290.0,2.9e-07]
[1740493099178,0.168033,89268.0,89267.0,0.0016984]
[1740493099394,0.468033,89268.0,89267.0,0.0016984]
[1740493101066,0.468059,89254.0,89253.0,0.0016984]
[1740493102358,0.469059,89254.0,89253.0,0.0016984]
[1740493103046,0.301,89254.0,89253.0,0.0016984]
[1740493103291,0.003,89254.0,89253.0,0.12224647]
[1740493103501,0.171059,89254.0,89253.0,0.12224647]
[1740493103723,0.003,89254.0,89253.0,0.12224647]
[1740493103926,0.003,89254.0,89253.0,0.30484832]
[1740493104207,0.003,89254.0,89253.0,0.35024832]
[1740493104445,0.002,89254.0,89253.0,0.35024832]
[1740493104663,0.1,89306.0,89254.0,0.01454085]
[1740493104878,0.1,89306.0,89253.0,0.35024832]
[1740493104879,0.02501115,89289.0,89265.0,0.04494807]
[1740493105113,0.170059,89254.0,89253.0,0.1226984]
[1740493105299,0.470059,89254.0,89253.0,0.0772984]
[1740493105603,0.468059,89254.0,89253.0,0.0016984]
[1740493105748,0.470059,89254.0,89253.0,0.0016984]
[1740493106088,0.469059,89254.0,89253.0,0.0016984]
[1740493106393,0.468059,89254.0,89253.0,0.0016984]
[1740493106630,0.58191596,89254.0,89253.0,0.0016984]
[1740493106820,0.80648187,89254.0,89253.0,0.0016984]
[1740493107043,0.468059,89254.0,89253.0,0.0016984]
[1740493108034,0.469059,89254.0,89253.0,0.0016984]
[1740493108647,0.69262491,89254.0,89253.0,0.0016984]
[1740493109072,0.69462491,89254.0,89253.0,0.0016984]
[1740493109663,0.69262491,89254.0,89253.0,0.0016984]
[1740493110556,0.468095,89235.0,89234.0,0.04494807]
[1740493110763,0.168099,89233.0,89232.0,0.13536858]
[1740493111189,0.468099,89233.0,89232.0,0.13536858]
[1740493111370,0.48995172,89233.0,89232.0,0.13536858]
[1740493111787,0.468101,89232.0,89231.0,0.25714]
[1740493112967,0.168101,89232.0,89231.0,0.25714]
[1740493113175,0.32285272,89233.0,89232.0,0.04494807]
[1740493113410,0.49095172,89233.0,89232.0,0.04494807]
[1740493113984,0.48995172,89233.0,89232.0,0.04494807]
[1740493114193,0.48995172,89233.0,89232.0,0.04394807]
[1740493114412,0.48995172,89233.0,89232.0,0.04294807]
[1740493114830,0.02185272,89233.0,89232.0,0.04294807]
[1740493115000,0.19195172,89233.0,89232.0,0.04294807]
[1740493115206,0.169099,89233.0,89232.0,0.04294807]
[1740493115404,0.168099,89233.0,89232.0,0.04294807]
[1740493115615,0.19047484,89233.0,89232.0,0.04294807]
[1740493115774,0.168101,89232.0,89231.0,0.12414847]
[1740493115975,0.168101,89232.0,89231.0,0.0812004]
[1740493116232,0.168101,89232.0,89231.0,0.0017004]
[1740493117425,0.169101,89232.0,89231.0,0.0027004]
[1740493117972,0.169101,89232.0,89231.0,0.0017004]
[1740493117973,0.168101,89232.0,89231.0,0.0017004]
[1740493118103,0.168101,89232.0,89231.0,0.0037004]
[1740493118319,0.168101,89232.0,89231.0,0.0057004]
[1740493118506,0.02237584,89233.0,89231.0,0.04664847]
[1740493118714,0.168101,89232.0,89231.0,0.04664847]
[1740493118910,0.468101,89232.0,89231.0,0.04864847]
[1740493119110,0.3,89232.0,89231.0,0.04864847]
[1740493119615,0.468101,89232.0,89231.0,0.04864847]
[1740493119768,0.468101,89232.0,89231.0,0.04664847]
[1740493120113,0.468101,89232.0,89231.0,0.0057004]
[1740493120294,0.468101,89232.0,89231.0,0.04864847]
[1740493120503,0.468101,89232.0,89231.0,0.04664847]